bitfinex/quotes_BTCUSD_20250127
["timestamp","ask_amount","ask_price","bid_price","bid_amount"]
[1737968496551,2.25853973,98995.0,98967.0,0.0001416]
[1737968496552,0.161564,98968.0,98967.0,0.0001416]
[1737968496780,1.07066979,98968.0,98967.0,0.00026666]
[1737968497373,0.9733225,98968.0,98967.0,0.00026666]
[1737968497642,1.07066979,98968.0,98967.0,0.00026666]
[1737968498083,1.07066979,98968.0,98967.0,0.00326666]
[1737968498499,0.9733225,98968.0,98967.0,0.00226666]
[1737968498723,0.9633225,98968.0,98967.0,0.00226666]
[1737968498855,0.8217585,98968.0,98967.0,0.15383166]
[1737968499112,0.8117585,98968.0,98967.0,0.38653166]
[1737968499346,0.8117585,98968.0,98967.0,0.48187895]
[1737968499565,0.3206585,98968.0,98967.0,0.50487895]
[1737968500177,0.01,98991.0,98967.0,1.10679495]
[1737968500377,0.7117585,98990.0,98989.0,0.454131]
[1737968500579,0.2706585,98990.0,98989.0,0.55147829]
[1737968500985,0.2806585,98990.0,98989.0,0.281131]
[1737968501382,0.2806585,98990.0,98989.0,0.0827]
[1737968501732,0.01,98979.0,98978.0,0.0827]
[1737968501983,0.7217585,98979.0,98978.0,0.234248]
[1737968502121,0.7117585,98979.0,98978.0,0.234248]
[1737968502737,0.7217585,98979.0,98978.0,0.234248]
[1737968503587,0.7217585,98979.0,98978.0,0.237248]
[1737968503927,0.7217585,98979.0,98978.0,0.234248]
[1737968504129,0.7217585,98979.0,98978.0,0.237248]
[1737968504559,0.7117585,98979.0,98978.0,0.234248]
[1737968504756,0.7117585,98979.0,98978.0,0.51468664]
[1737968504959,0.7117585,98979.0,98978.0,0.51568664]
[1737968505385,0.2706585,98979.0,98978.0,0.7608704]
[1737968505849,0.2706585,98979.0,98978.0,0.7618704]
[1737968506050,0.2706585,98979.0,98978.0,0.7648704]
[1737968506261,0.2706585,98979.0,98978.0,0.7618704]
[1737968506515,0.4411,98997.0,98991.0,0.407228]
[1737968506516,0.2706585,98992.0,98991.0,0.407228]
[1737968506720,0.2706585,98992.0,98991.0,0.75075905]
[1737968507194,0.2706585,98992.0,98991.0,0.50457529]
[1737968507829,0.2706585,98992.0,98991.0,0.51692887]
[1737968507983,0.26958755,98992.0,98991.0,0.51692887]
[1737968508655,0.26958755,98992.0,98991.0,0.39658158]
[1737968509106,0.26958755,98992.0,98991.0,0.24658158]
[1737968509277,0.27958755,98992.0,98991.0,0.234228]
[1737968509508,0.01,98979.0,98978.0,0.0827]
[1737968509716,0.01,98979.0,98978.0,0.09461409]
[1737968509965,0.01,98979.0,98978.0,0.24616209]
[1737968511081,0.01,98979.0,98978.0,0.24816209]
[1737968512128,0.01,98979.0,98978.0,0.27116209]
[1737968512340,0.01,98979.0,98978.0,0.26930369]
[1737968512541,0.01,98979.0,98978.0,0.27030369]
[1737968512770,0.01,98979.0,98978.0,0.27330369]
[1737968513196,0.01,98979.0,98978.0,0.27230369]
[1737968513346,0.01,98979.0,98978.0,0.27330369]
[1737968514430,0.71958755,98979.0,98978.0,0.27330369]
[1737968514635,0.71958755,98979.0,98978.0,0.0041416]
[1737968515185,0.71958755,98979.0,98978.0,0.1556896]
[1737968515386,0.71958755,98979.0,98978.0,0.1546896]
[1737968515590,0.71958755,98979.0,98978.0,0.0001416]
[1737968515790,0.87113455,98979.0,98978.0,0.0011416]
[1737968516032,0.71958755,98979.0,98978.0,0.0041416]
[1737968516242,0.71958755,98979.0,98978.0,0.1516896]
[1737968516580,0.71958755,98979.0,98978.0,0.1546896]
[1737968517106,0.71958755,98979.0,98978.0,0.1516896]
[1737968517446,0.70958755,98979.0,98978.0,0.1746896]
[1737968517867,0.70958755,98979.0,98978.0,0.42203689]
[1737968518069,0.70958755,98979.0,98978.0,0.51634929]
[1737968519060,0.70958755,98979.0,98978.0,0.51734929]
[1737968519212,0.70958755,98979.0,98978.0,0.51934929]
[1737968519420,0.71958755,98979.0,98978.0,0.398002]
[1737968519640,0.71958755,98979.0,98978.0,0.2343896]
[1737968519842,0.70958755,98979.0,98978.0,0.2383896]
[1737968520253,0.71958755,98979.0,98978.0,0.2373896]
[1737968520444,0.71958755,98979.0,98978.0,0.1546896]
[1737968520771,0.70958755,98979.0,98978.0,0.1526896]
[1737968520969,0.70958755,98979.0,98978.0,0.27303689]
[1737968521835,0.70958755,98979.0,98978.0,0.42303689]
[1737968522044,0.70958755,98979.0,98978.0,0.55163689]
[1737968522260,0.26988491,98992.0,98991.0,0.301528]
[1737968522467,0.26988491,98992.0,98991.0,0.51466664]
[1737968522673,0.26988491,98992.0,98991.0,1.41633564]
[1737968522889,0.26988491,98992.0,98991.0,0.85139764]
[1737968523127,0.44,99006.0,99005.0,0.301507]
[1737968523399,0.44,99006.0,99005.0,0.7608294]
[1737968523632,0.16886491,99013.0,99012.0,0.407196]
[1737968523837,0.16886491,99013.0,99012.0,0.50454329]
[1737968526097,0.16886491,99013.0,99012.0,0.51844995]
[1737968526323,0.16886491,99013.0,99012.0,0.52244995]
[1737968527093,0.16886491,99013.0,99012.0,0.51644995]
[1737968527494,0.16886491,99013.0,99012.0,0.51944995]
[1737968527671,0.16886491,99013.0,99012.0,0.63098395]
[1737968528523,0.16886491,99013.0,99012.0,0.63298395]
[1737968529057,0.16886491,99013.0,99012.0,0.61654995]
[1737968529265,0.16886491,99013.0,99012.0,0.52044995]
[1737968529472,0.16886491,99013.0,99012.0,0.52344995]
[1737968529891,0.16886491,99013.0,99012.0,0.51644995]
[1737968530091,0.16886491,99013.0,99012.0,0.52044995]
[1737968530294,0.16886491,99013.0,99012.0,0.52944995]
[1737968530520,0.16886491,99013.0,99012.0,0.52044995]
[1737968530941,0.16886491,99013.0,99012.0,0.52644995]
[1737968531568,0.16886491,99013.0,99012.0,0.73798995]
[1737968531863,0.16886491,99013.0,99012.0,0.74098995]
[1737968532067,0.3493,99034.0,99013.0,0.402995]
[1737968532068,3.6e-07,99014.0,99013.0,0.402995]
[1737968532267,3.6e-07,99014.0,99013.0,2.24343329]
[1737968532474,3.6e-07,99014.0,99013.0,0.50034229]
[1737968532890,0.16886491,99046.0,99038.0,0.324457]
[1737968533096,0.00044578,99039.0,99038.0,0.8889954]
[1737968533392,0.00044578,99039.0,99038.0,0.6380904]
[1737968533596,0.00044578,99039.0,99038.0,0.6879904]
[1737968534139,0.00044578,99039.0,99038.0,0.79788755]
[1737968534451,0.00044578,99039.0,99038.0,0.7664904]
[1737968535278,0.00044578,99039.0,99038.0,0.778457]
[1737968535490,0.16886491,99046.0,99039.0,0.173]
[1737968535693,0.16886491,99046.0,99044.0,0.173]
[1737968535897,0.16886491,99046.0,99045.0,0.26761729]
[1737968536123,0.16886491,99046.0,99045.0,0.41761729]
[1737968536327,0.16886491,99046.0,99045.0,0.27034729]
[1737968536531,0.16886491,99046.0,99045.0,0.09734729]
[1737968536959,0.16886491,99046.0,99045.0,0.12034729]
[1737968538740,0.16886491,99046.0,99045.0,0.12734729]
[1737968539154,0.16886491,99046.0,99045.0,0.12034729]
[1737968539356,0.16886491,99046.0,99045.0,0.12534729]
[1737968539559,0.16886491,99046.0,99045.0,0.12734729]
[1737968539809,0.16886491,99046.0,99045.0,0.12234729]
[1737968540015,0.16886491,99046.0,99045.0,0.12734729]
[1737968540432,0.16886491,99046.0,99045.0,0.42879329]
[1737968541441,0.16886491,99046.0,99045.0,0.42679329]
[1737968541852,0.16886491,99046.0,99045.0,0.42379329]
[1737968542174,0.16886491,99046.0,99045.0,0.42879329]
[1737968542381,0.16886491,99046.0,99045.0,0.42679329]
[1737968543199,0.16886491,99046.0,99045.0,0.42779329]
[1737968544443,0.16886491,99046.0,99045.0,0.42679329]
[1737968544856,0.16886491,99046.0,99045.0,0.42379329]
[1737968545269,0.16886491,99046.0,99045.0,0.42879329]
[1737968546047,0.16886491,99046.0,99045.0,0.42179329]
[1737968546254,0.16886491,99046.0,99045.0,0.42279329]
[1737968546670,0.16886491,99046.0,99045.0,0.42779329]
[1737968547656,0.16886491,99046.0,99045.0,0.55963329]
[1737968547859,0.16886491,99046.0,99045.0,0.56063329]
[1737968548062,0.16886491,99046.0,99045.0,0.55563329]
[1737968548267,0.15106491,99046.0,99045.0,0.53136529]
[1737968548467,0.15106491,99046.0,99045.0,0.53036529]
[1737968548621,0.15106491,99046.0,99045.0,0.52736529]
[1737968549036,0.15106491,99046.0,99045.0,0.53236529]
[1737968549247,0.15106491,99046.0,99045.0,0.52736529]
[1737968549494,0.15106491,99046.0,99045.0,0.52636529]
[1737968549739,0.15106491,99046.0,99045.0,0.42179329]
[1737968549881,0.15106491,99046.0,99045.0,0.42679329]
[1737968550297,0.15106491,99046.0,99045.0,0.59325729]
[1737968551245,0.15106491,99046.0,99045.0,0.64137929]
[1737968551457,0.15106491,99046.0,99045.0,0.64637929]
[1737968551608,0.15106491,99046.0,99045.0,0.63199929]
[1737968552016,0.15106491,99046.0,99045.0,0.62999929]
[1737968552392,0.15106491,99046.0,99045.0,0.63199929]
[1737968552595,0.15106491,99046.0,99045.0,0.56943529]
[1737968555479,0.15106491,99046.0,99045.0,0.69593529]
[1737968555687,0.15106491,99046.0,99045.0,0.69093529]
[1737968555892,0.00029736,99047.0,99045.0,0.69093529]
[1737968555893,0.00029736,99047.0,99046.0,0.151444]
[1737968556153,0.00029736,99047.0,99046.0,0.45436929]
[1737968556293,0.00029736,99047.0,99046.0,0.60436929]
[1737968556729,0.00029736,99047.0,99046.0,0.62736929]
[1737968557244,0.00029736,99047.0,99046.0,0.56466029]
[1737968557513,0.00029736,99047.0,99046.0,0.52464729]
[1737968557713,0.00029736,99047.0,99046.0,0.45320284]
[1737968558326,0.00029736,99047.0,99046.0,0.62860484]
[1737968558715,0.00029736,99047.0,99046.0,0.6259108]
[1737968558959,0.00029736,99047.0,99046.0,0.5948498]
[1737968559103,0.00029736,99047.0,99046.0,0.5978498]
[1737968559302,0.00029736,99047.0,99046.0,0.6058498]
[1737968559620,0.00029736,99054.0,99047.0,0.173]
[1737968559828,0.00029736,99054.0,99053.0,0.174434]
[1737968560027,0.00029736,99054.0,99053.0,0.27178129]
[1737968561315,0.00029736,99054.0,99053.0,0.30325774]
[1737968562299,0.00029736,99054.0,99053.0,0.31225774]
[1737968562520,0.00029736,99054.0,99053.0,0.30525774]
[1737968562725,0.00029736,99054.0,99053.0,0.31690931]
[1737968562936,0.00029736,99054.0,99053.0,0.32190931]
[1737968563148,0.01029736,99054.0,99053.0,0.18991045]
[1737968563364,0.01029736,99054.0,99053.0,0.03647645]
[1737968563570,0.01029736,99054.0,99053.0,0.005]
[1737968563779,0.01029736,99054.0,99053.0,0.158434]
[1737968564434,0.01029736,99054.0,99053.0,0.007]
[1737968564835,0.63429427,99054.0,99053.0,0.007]
[1737968565041,0.48286227,99054.0,99053.0,0.005]
[1737968565249,0.48286227,99054.0,99050.0,0.151437]
[1737968565453,0.48286227,99054.0,99053.0,0.005]
[1737968565671,0.48286227,99054.0,99053.0,0.156434]
[1737968565872,0.48286227,99054.0,99053.0,0.151434]
[1737968566101,0.47286227,99054.0,99053.0,0.151434]
[1737968566302,0.47286227,99054.0,99053.0,0.153434]
[1737968566505,0.47286227,99054.0,99053.0,0.151434]
[1737968566710,0.48286227,99054.0,99053.0,0.151434]
[1737968566986,0.48286227,99054.0,99053.0,0.154434]
[1737968568336,0.48286227,99054.0,99053.0,0.155434]
[1737968568537,0.48286227,99054.0,99053.0,0.152434]
[1737968568729,0.48286227,99054.0,99053.0,0.155434]
[1737968568930,0.48286227,99054.0,99053.0,0.154434]
[1737968569184,0.48286227,99054.0,99053.0,0.152434]
[1737968569385,0.48286227,99054.0,99053.0,0.155434]
[1737968569792,0.48286227,99054.0,99046.0,0.201926]
[1737968569793,0.01,99048.0,99047.0,0.151443]
[1737968569998,0.01,99048.0,99045.0,0.0001415]
[1737968570253,0.01,99048.0,99047.0,0.151443]
[1737968570592,0.48256491,99048.0,99047.0,0.151443]
[1737968571295,0.47256491,99048.0,99047.0,0.151443]
[1737968571711,0.48256491,99048.0,99047.0,0.151443]
[1737968572469,0.47256491,99048.0,99047.0,0.24879029]
[1737968572882,0.47256491,99048.0,99047.0,0.25179029]
[1737968573246,0.48256491,99048.0,99047.0,0.001]
[1737968573621,0.48256491,99048.0,99047.0,0.005]
[1737968573824,0.48256491,99048.0,99045.0,0.0001415]
[1737968574075,0.48256491,99048.0,99047.0,0.001]
[1737968574280,0.48256491,99048.0,99047.0,0.004]
[1737968574471,0.48256491,99048.0,99047.0,0.155443]
[1737968575206,0.48256491,99048.0,99047.0,0.154443]
[1737968575607,0.48256491,99048.0,99047.0,0.151443]
[1737968575906,0.48256491,99048.0,99047.0,0.153443]
[1737968576105,0.48256491,99048.0,99047.0,0.151443]
[1737968576513,0.48256491,99048.0,99047.0,0.001]
[1737968576915,0.48256491,99048.0,99047.0,0.152443]
[1737968580557,0.512941,99048.0,99047.0,0.001]
[1737968581175,0.3615,99048.0,99047.0,0.001]
[1737968581287,0.512941,99048.0,99047.0,0.001]
[1737968582184,0.3614,99048.0,99047.0,0.001]
[1737968582410,0.0099,99048.0,99047.0,0.001]
[1737968583249,0.0099,99051.0,99050.0,0.151438]
[1737968583453,0.00029736,99054.0,99053.0,0.151434]
[1737968583656,0.00029736,99054.0,99053.0,0.27178129]
[1737968583861,0.00029736,99054.0,99053.0,1.27503464]
[1737968584067,0.00029736,99054.0,99053.0,1.67954864]
[1737968584474,0.00029736,99054.0,99053.0,1.56359419]
[1737968585311,0.00029736,99054.0,99053.0,0.79502219]
[1737968585543,0.00029736,99054.0,99053.0,0.53901319]
[1737968585825,0.00029736,99054.0,99053.0,0.61489564]
[1737968586023,0.00029736,99054.0,99053.0,0.63486867]
[1737968586444,0.00029736,99054.0,99053.0,0.64625434]
[1737968586653,0.00029736,99054.0,99053.0,0.67770521]
[1737968586864,0.00029736,99054.0,99053.0,0.65973218]
[1737968587330,0.00029736,99054.0,99053.0,0.62828131]
[1737968587560,0.00029736,99054.0,99053.0,0.47418996]
[1737968587786,0.01019736,99054.0,99053.0,0.16281967]
[1737968588006,0.01019736,99054.0,99053.0,0.16881967]
[1737968588211,0.01019736,99054.0,99053.0,0.17081967]
[1737968588435,0.01019736,99054.0,99053.0,0.26816696]
[1737968588436,0.00029736,99054.0,99053.0,0.26816696]
[1737968588646,0.00029736,99054.0,99053.0,0.16481967]
[1737968588647,0.01019736,99054.0,99053.0,0.16481967]
[1737968588863,0.00029736,99054.0,99053.0,0.16281967]
[1737968589128,0.00029736,99054.0,99053.0,0.16481967]
[1737968589340,0.00029736,99054.0,99053.0,0.26216696]
[1737968589545,0.00029736,99054.0,99053.0,0.26016696]
[1737968589974,0.00029736,99054.0,99053.0,0.28916696]
[1737968590358,0.00029736,99054.0,99053.0,0.28316696]
[1737968590596,0.00029736,99054.0,99053.0,0.28916696]
[1737968591176,0.00029736,99054.0,99053.0,0.36836696]
[1737968591686,0.00029736,99054.0,99053.0,0.36236696]
[1737968591886,0.00029736,99054.0,99053.0,0.36836696]
[1737968592092,0.00029736,99054.0,99053.0,0.37036696]
[1737968592537,0.00029736,99054.0,99053.0,0.36836696]
[1737968592763,0.00029736,99054.0,99053.0,0.51836696]
[1737968593000,0.00029736,99054.0,99053.0,0.52036696]
[1737968593585,0.00029736,99054.0,99053.0,0.51436696]
[1737968593955,0.00029736,99054.0,99053.0,0.52036696]
[1737968594150,0.00029736,99054.0,99053.0,0.51236696]
[1737968594360,0.00029736,99054.0,99053.0,0.79815696]
[1737968594559,0.00029736,99054.0,99053.0,0.80415696]
[1737968594786,0.00029736,99054.0,99053.0,0.87518457]
[1737968594952,0.00029736,99054.0,99053.0,0.87318457]
[1737968595152,0.00029736,99054.0,99053.0,0.88118457]
[1737968595355,0.00029736,99054.0,99053.0,0.87518457]
[1737968595798,0.00029736,99054.0,99053.0,0.87318457]
[1737968596171,0.00029736,99054.0,99053.0,0.87618457]
[1737968596789,0.00029736,99054.0,99053.0,0.88318457]
[1737968597103,0.00029736,99054.0,99053.0,0.87618457]
[1737968597470,0.00029736,99054.0,99053.0,0.88318457]
[1737968598472,0.00029736,99054.0,99053.0,0.81882057]
[1737968598674,0.00029736,99054.0,99053.0,0.78396357]
[1737968599120,0.00029736,99054.0,99053.0,0.75253596]
[1737968599319,0.00029736,99054.0,99053.0,0.78393971]
[1737968600090,0.00029736,99054.0,99053.0,0.75253596]
[1737968600729,0.00029736,99054.0,99053.0,0.59934669]
[1737968600933,0.00029736,99054.0,99053.0,0.83268196]
[1737968601428,0.00029736,99054.0,99053.0,0.79848196]
[1737968601635,0.00029736,99054.0,99053.0,0.72010596]
[1737968602033,0.00029736,99054.0,99053.0,0.7544864]
[1737968602233,0.00029736,99054.0,99053.0,0.7474864]
[1737968602379,0.00029736,99054.0,99053.0,0.7444864]
[1737968602580,0.00029736,99054.0,99053.0,0.7514864]
[1737968603908,0.3515,99090.0,99087.0,0.151382]
[1737968604132,0.01556742,99088.0,99087.0,0.27172929]
[1737968604518,0.02546742,99088.0,99087.0,0.151382]
[1737968604918,0.0099,99086.0,99085.0,0.201845]
[1737968605121,0.0099,99080.0,99079.0,0.166194]
[1737968606026,0.0099,99080.0,99079.0,0.177498]
[1737968607186,0.0099,99080.0,99069.0,0.201878]
[1737968607399,0.0099,99080.0,99057.0,0.09474]
[1737968607400,0.0099,99080.0,99079.0,0.006]
[1737968608073,0.0099,99080.0,99077.0,0.151396]
[1737968608074,0.0099,99076.0,99075.0,0.1514]
[1737968609431,0.3614,99076.0,99075.0,0.1544]
[1737968610110,0.3515,99076.0,99075.0,0.25174729]
[1737968610310,0.3515,99076.0,99075.0,0.27474729]
[1737968610528,0.3515,99076.0,99075.0,0.53102443]
[1737968611089,0.3515,99076.0,99075.0,0.75792443]
[1737968611305,0.3515,99076.0,99075.0,0.75992443]
[1737968611715,0.3515,99076.0,99075.0,0.76592443]
[1737968611909,0.3515,99076.0,99075.0,0.75792443]
[1737968612136,0.3515,99076.0,99075.0,0.75992443]
[1737968612340,0.3515,99076.0,99075.0,0.76592443]
[1737968612557,0.3515,99076.0,99075.0,0.75992443]
[1737968612833,0.3515,99076.0,99075.0,1.61167078]
[1737968613075,0.3515,99076.0,99075.0,1.41362378]
[1737968613248,0.3515,99076.0,99075.0,0.81901578]
[1737968613450,0.3515,99076.0,99075.0,0.81701578]
[1737968613844,0.3515,99076.0,99075.0,0.81901578]
[1737968614217,0.3515,99076.0,99075.0,0.82501578]
[1737968614435,0.3515,99076.0,99075.0,0.81701578]
[1737968614659,0.3515,99076.0,99075.0,0.82501578]
[1737968615024,0.3515,99076.0,99075.0,0.99472578]
[1737968615261,0.01586457,99088.0,99087.0,0.151382]
[1737968615463,0.01586457,99088.0,99087.0,0.52800643]
[1737968615935,0.01586457,99088.0,99087.0,0.27172929]
[1737968616698,0.01586457,99088.0,99087.0,0.28293523]
[1737968617714,0.01586457,99088.0,99087.0,0.28493523]
[1737968618858,0.01586457,99088.0,99087.0,0.28293523]
[1737968619064,0.01586457,99088.0,99087.0,0.28493523]
[1737968620594,0.01586457,99088.0,99087.0,0.28293523]
[1737968620767,0.01586457,99088.0,99087.0,0.28493523]
[1737968621124,0.01586457,99088.0,99087.0,0.28293523]
[1737968621532,0.01586457,99088.0,99087.0,0.28493523]
[1737968621750,0.01586457,99088.0,99087.0,0.26193523]
[1737968622373,0.01586457,99088.0,99087.0,0.25993523]
[1737968623009,0.02576457,99088.0,99072.0,0.201871]
[1737968623252,0.0099,99073.0,99068.0,0.2028775]
[1737968623545,0.0099,99073.0,99071.0,0.01108927]
[1737968623753,0.0099,99073.0,99071.0,0.0001415]
[1737968623954,0.0099,99073.0,99072.0,0.151405]
[1737968625322,0.0099,99073.0,99072.0,0.153405]
[1737968625543,0.0099,99073.0,99072.0,0.159405]
[1737968625943,0.0099,99085.0,99073.0,0.023]
[1737968626146,0.01586457,99088.0,99082.0,0.151389]
[1737968626147,0.0099,99083.0,99082.0,0.151389]
[1737968628055,0.0099,99083.0,99082.0,0.153389]
[1737968629019,0.0099,99083.0,99082.0,0.002]
[1737968630886,0.0099,99083.0,99082.0,0.001]
[1737968631878,0.0099,99083.0,99082.0,0.152389]
[1737968632390,0.0099,99083.0,99082.0,0.001]
[1737968633239,0.3614,99083.0,99082.0,0.001]
[1737968633449,0.512788,99083.0,99082.0,0.001]
[1737968634614,0.151392,99081.0,99073.0,0.151402]
[1737968634835,0.51308615,99083.0,99071.0,0.0001415]
[1737968635069,0.151389,99082.0,99071.0,0.0001415]
[1737968635203,0.36169715,99083.0,99076.0,0.151398]
[1737968635400,0.36169715,99083.0,99078.0,0.151395]
[1737968636254,0.15139,99082.0,99074.0,0.1514]
[1737968636452,0.36169715,99083.0,99077.0,0.151396]
[1737968636700,0.36169715,99083.0,99075.0,0.151399]
[1737968636923,0.36169715,99083.0,99074.0,0.201869]
[1737968637132,0.36169715,99083.0,99081.0,0.151391]
[1737968637133,0.0099,99082.0,99081.0,0.151391]
[1737968637540,0.35179715,99083.0,99082.0,0.151389]
[1737968637753,0.35179715,99083.0,99082.0,0.34673629]
[1737968638214,0.00029715,99083.0,99082.0,0.49673629]
[1737968638860,0.00029715,99083.0,99082.0,0.34773629]
[1737968639042,0.00029715,99083.0,99082.0,0.16336423]
[1737968639219,0.00029715,99083.0,99082.0,0.16236423]
[1737968640423,0.00029715,99083.0,99082.0,0.16336423]
[1737968640867,0.00029715,99083.0,99082.0,0.25971152]
[1737968641082,0.00029715,99083.0,99082.0,0.28271152]
[1737968641216,0.00029715,99083.0,99082.0,0.28571152]
[1737968641416,0.00029715,99083.0,99082.0,0.26271152]
[1737968641640,0.00029715,99083.0,99082.0,0.25971152]
[1737968642203,0.00029715,99083.0,99082.0,0.26071152]
[1737968642383,0.00029715,99083.0,99082.0,0.28371152]
[1737968642592,0.00029715,99083.0,99082.0,0.43571152]
[1737968642821,0.00029715,99083.0,99082.0,0.50871152]
[1737968643191,0.00029715,99083.0,99082.0,0.50971152]
[1737968643394,0.00029715,99083.0,99082.0,0.50871152]
[1737968644758,0.00029715,99083.0,99082.0,0.50771152]
[1737968644970,0.00029715,99083.0,99082.0,0.51071152]
[1737968645101,0.00029715,99083.0,99082.0,0.51171152]
[1737968645306,0.00029715,99083.0,99082.0,0.50871152]
[1737968645504,0.00029715,99083.0,99082.0,0.51271152]
[1737968646531,0.00029715,99083.0,99082.0,0.51171152]
[1737968646876,0.00029715,99083.0,99082.0,0.51271152]
[1737968648489,0.32042853,99087.0,99086.0,0.151383]
[1737968648701,0.32042853,99087.0,99086.0,0.27173029]
[1737968649387,0.32042853,99087.0,99086.0,0.52800743]
[1737968649614,0.32042853,99087.0,99086.0,0.53100743]
[1737968650979,0.32042853,99087.0,99086.0,0.53300743]
[1737968651432,0.32042853,99087.0,99086.0,0.53100743]
[1737968651654,0.32042853,99087.0,99086.0,0.52800743]
[1737968651861,0.32042853,99087.0,99086.0,0.53700743]
[1737968652057,0.32042853,99087.0,99086.0,0.28073029]
[1737968652265,0.32042853,99087.0,99086.0,0.27373029]
[1737968652684,0.32042853,99087.0,99086.0,0.27973029]
[1737968653311,0.32042853,99087.0,99086.0,0.27773029]
[1737968653499,0.32042853,99087.0,99086.0,0.27873029]
[1737968653715,0.32042853,99087.0,99086.0,0.27273029]
[1737968654163,0.32042853,99087.0,99086.0,0.27173029]
[1737968654469,0.32042853,99087.0,99086.0,0.27273029]
[1737968654992,0.32042853,99087.0,99086.0,0.27673029]
[1737968656557,0.32042853,99087.0,99086.0,0.53400743]
[1737968656930,0.32042853,99087.0,99086.0,0.52800743]
[1737968657136,0.32042853,99087.0,99086.0,0.27173029]
[1737968657342,0.32042853,99087.0,99086.0,0.27273029]
[1737968657709,0.32042853,99087.0,99086.0,0.29075341]
[1737968657943,0.32057003,99087.0,99086.0,0.28975341]
[1737968658295,0.32057003,99087.0,99086.0,0.29575341]
[1737968658475,0.32057003,99087.0,99086.0,0.29075341]
[1737968658976,0.32057003,99087.0,99086.0,0.27773029]
[1737968659541,0.32057003,99087.0,99086.0,0.28073029]
[1737968659966,0.32057003,99087.0,99086.0,0.28173029]
[1737968660579,0.32057003,99087.0,99086.0,0.28073029]
[1737968660957,0.32057003,99087.0,99086.0,0.28173029]
[1737968661379,0.32057003,99087.0,99086.0,0.27173029]
[1737968661582,0.32057003,99087.0,99086.0,0.27773029]
[1737968662016,0.32057003,99087.0,99086.0,0.27173029]
[1737968662395,0.32057003,99087.0,99086.0,0.27673029]
[1737968662570,0.32057003,99087.0,99086.0,0.27173029]
[1737968662985,0.32057003,99087.0,99086.0,0.27573029]
[1737968663142,0.32057003,99087.0,99086.0,0.27173029]
[1737968663869,0.32057003,99087.0,99086.0,0.27273029]
[1737968664233,0.32057003,99087.0,99086.0,0.27173029]
[1737968664486,0.32057003,99087.0,99086.0,0.27273029]
[1737968664816,0.32057003,99087.0,99086.0,0.27873029]
[1737968665012,0.32057003,99087.0,99086.0,0.27273029]
[1737968665232,0.32057003,99087.0,99086.0,0.27773029]
[1737968665632,0.32057003,99087.0,99086.0,0.27273029]
[1737968665835,0.32057003,99087.0,99086.0,0.27773029]
[1737968666720,0.32057003,99087.0,99086.0,0.27673029]
[1737968667674,0.32057003,99087.0,99086.0,0.27273029]
[1737968668095,0.32057003,99087.0,99086.0,0.27673029]
[1737968668263,0.32057003,99087.0,99086.0,0.2897926]
[1737968668681,0.32057003,99087.0,99086.0,0.2947926]
[1737968669274,0.32057003,99087.0,99086.0,0.4397926]
[1737968669501,0.00822988,99088.0,99087.0,0.324382]
[1737968669703,0.32042853,99104.0,99103.0,0.324357]
[1737968669876,0.32042853,99104.0,99103.0,0.50170429]
[1737968670247,0.151312,99133.0,99103.0,0.50170429]
[1737968670248,0.28006653,99115.0,99112.0,0.15]
[1737968670451,0.28006653,99137.0,99130.0,0.151316]
[1737968670657,0.28006653,99137.0,99136.0,0.301307]
[1737968670873,0.01019715,99154.0,99145.0,0.151293]
[1737968671076,0.01019715,99154.0,99145.0,0.27164029]
[1737968671313,0.0004455,99146.0,99145.0,0.27164029]
[1737968671516,0.0103455,99146.0,99145.0,0.151293]
[1737968671723,0.0103455,99146.0,99145.0,0.19816464]
[1737968671941,0.0103455,99146.0,99145.0,0.04687164]
[1737968671942,0.75250403,99146.0,99145.0,0.04687164]
[1737968672146,0.79890403,99146.0,99145.0,0.04687164]
[1737968672357,0.89625132,99146.0,99145.0,0.04687164]
[1737968672986,0.74495932,99146.0,99117.0,0.2027775]
[1737968673323,0.353069,99131.0,99121.0,0.15133]
[1737968673529,0.0099,99122.0,99121.0,0.15133]
[1737968673708,0.0099,99122.0,99117.0,0.2027775]
[1737968673908,0.0099,99122.0,99117.0,0.20178]
[1737968674112,0.0099,99122.0,99118.0,0.151334]
[1737968674315,0.0099,99122.0,99119.0,0.151332]
[1737968674469,0.0099,99120.0,99119.0,0.151332]
[1737968675834,0.277418,99149.0,99125.0,0.151324]
[1737968675835,0.0099,99126.0,99125.0,0.151324]
[1737968676033,0.0099,99126.0,99125.0,0.174324]
[1737968677167,0.0109,99126.0,99125.0,0.174324]
[1737968677544,0.0099,99126.0,99125.0,0.151324]
[1737968678343,0.0099,99126.0,99125.0,0.152324]
[1737968678678,0.0099,99126.0,99125.0,0.151324]
[1737968679336,0.0099,99126.0,99125.0,0.153324]
[1737968679741,0.0099,99126.0,99125.0,0.1044]
[1737968679942,0.0099,99126.0,99125.0,0.255724]
[1737968680603,0.0004455,99146.0,99145.0,0.151293]
[1737968680812,0.0004455,99146.0,99145.0,0.27164029]
[1737968681203,0.0004455,99146.0,99145.0,0.35104029]
[1737968682530,0.0004455,99146.0,99145.0,0.28245099]
[1737968683540,0.0014455,99146.0,99145.0,0.28245099]
[1737968684143,0.0004455,99146.0,99145.0,0.28245099]
[1737968684462,0.0004455,99146.0,99145.0,0.28345099]
[1737968684652,0.0004455,99146.0,99145.0,0.28845099]
[1737968684860,0.0004455,99146.0,99145.0,0.28245099]
[1737968685254,0.0004455,99146.0,99145.0,0.43245099]
[1737968685460,0.0004455,99146.0,99145.0,0.92952734]
[1737968685674,0.0004455,99146.0,99145.0,1.69868534]
[1737968686075,0.0004455,99146.0,99145.0,1.70368534]
[1737968686276,0.0004455,99146.0,99145.0,1.69868534]
[1737968686498,0.0004455,99146.0,99145.0,1.69968534]
[1737968686797,0.0004455,99146.0,99145.0,1.61916634]
[1737968687108,0.0004455,99146.0,99145.0,1.62016634]
[1737968687443,0.0004455,99146.0,99145.0,1.09266034]
[1737968687659,0.28006653,99165.0,99153.0,0.301281]
[1737968687849,0.28006653,99165.0,99153.0,0.67790543]
[1737968689011,0.28006653,99165.0,99153.0,0.68390543]
[1737968689211,0.28006653,99165.0,99153.0,0.67790543]
[1737968689664,0.0099,99170.0,99153.0,0.68390543]
[1737968689850,0.0099,99170.0,99153.0,0.68590543]
[1737968690209,0.0099,99170.0,99153.0,0.68390543]
[1737968690435,0.0099,99170.0,99153.0,0.68590543]
[1737968690653,0.01019715,99176.0,99153.0,1.17535343]
[1737968691239,0.01019715,99176.0,99175.0,0.174247]
[1737968691240,0.00029715,99176.0,99175.0,0.174247]
[1737968691478,0.00044545,99176.0,99175.0,0.27159429]
[1737968692636,0.00044545,99176.0,99175.0,0.27259429]
[1737968693842,0.00044545,99176.0,99175.0,0.31919429]